[Event "FIDE Womens Grand Swiss 2023"]
[Site "Douglas/Isle of Man"]
[Date "2023.10.27"]
[Round "3.23"]
[White "Nassr, Lina"]
[Black "Lee, Alice"]
[Result "0-1"]
[ECO "D31"]
[WhiteElo "2066"]
[BlackElo "2388"]
[Annotator "ChessBase"]
[PlyCount "170"]
[EventDate "2023.10.04"]
[EventType "swiss"]
[EventCountry "GBR"]
[SourceTitle "playchess.com"]
[Source "ChessBase"]
[SourceQuality "1"]
[TimeControl "40/6000+30:20/3000+30:900+30"]

1. d4 {[%emt 0:10:03]} d5 {[%emt 0:10:04]} 2. c4 {[%emt 0:00:18]} e6 {[%emt 0:00:04]} 3. cxd5 {[%emt 0:00:51]} exd5 {[%emt 0:00:06]} 4. Nc3 {[%emt 0:00:18]} c6 {[%emt 0:00:52]} 5. Qc2 {[%emt 0:00:57]} Bd6 {[%emt 0:01:53]} 6. Nf3 {[%emt 0:01:06]} Ne7 {[%emt 0:00:32]} 7. Bg5 {[%emt 0:05:03]} h6 {[%emt 0:06:33]} 8. Bh4 {[%emt 0:03:11]} Qc7 {[%emt 0:05:58]} 9. e3 {[%emt 0:08:09]} Nf5 {[%emt 0:00:18]} 10. Bg3 {[%emt 0:00:43]} Nxg3 {[%emt 0:00:39]} 11. hxg3 {[%emt 0:00:05]} O-O {[%emt 0:09:00]} 12. Bd3 {[%emt 0:01:25]} Re8 {[%emt 0:01:08]} 13. O-O {[%emt 0:02:51]} Nd7 {[%emt 0:04:29]} 14. Rac1 {[%emt 0:09:37]} Qd8 {[%emt 0:01:08]} 15. a3 {[%emt 0:02:58]} a5 {[%emt 0:02:21]} 16. Rb1 {[%emt 0:05:45]} Nf6 {[%emt 0:12:07]} 17. Rfe1 {[%emt 0:06:31]} Be6 {[%emt 0:04:50]} 18. Na4 {[%emt 0:09:46]} Qe7 {[%emt 0:04:43]} 19. Nc5 {[%emt 0:07:57]} Bxc5 {[%emt 0:05:39]} 20. dxc5 {[%emt 0:07:07]} a4 {[%emt 0:00:29]} 21. b4 {[%emt 0:09:52]} axb3 {[%emt 0:00:15]} 22. Rxb3 {[%emt 0:00:26]} Ra5 {[%emt 0:02:51]} 23. Reb1 {[%emt 0:09:17]} Bc8 {[%emt 0:10:12]} 24. Rc1 {[%emt 0:01:19]} Bg4 {[%emt 0:00:55]} 25. Nd4 {[%emt 0:02:53]} Rea8 {[%emt 0:00:48]} 26. Qb2 {[%emt 0:00:49]} Bc8 {[%emt 0:01:12]} 27. Bf5 {[%emt 0:02:57]} Rxc5 {[%emt 0:04:44]} 28. Rxc5 {[%emt 0:00:05]} Qxc5 {[%emt 0:00:10]} 29. Bxc8 {[%emt 0:00:07]} Rxc8 {[%emt 0:00:02]} 30. Rxb7 {[%emt 0:00:27]} Qa5 {[%emt 0:03:30]} 31. Qb4 {[%emt 0:01:24]} Qxb4 {[%emt 0:00:05]} 32. axb4 {[%emt 0:00:03]} c5 {[%emt 0:02:57]} 33. bxc5 {[%emt 0:00:05]} Rxc5 {[%emt 0:00:04]} 34. f3 {[%emt 0:00:34]} h5 {[%emt 0:01:46]} 35. Kf2 {[%emt 0:01:05]} g6 {[%emt 0:00:31]} 36. Ra7 {[%emt 0:00:42]} Kf8 {[%emt 0:00:43]} 37. Rb7 {[%emt 0:00:40]} Ra5 {[%emt 0:02:39]} 38. Nc6 {[%emt 0:00:44]} Ra2+ {[%emt 0:00:06]} 39. Kf1 {[%emt 0:00:30]} Ne8 {[%emt 0:01:54]} 40. Ne5 {[%emt 0:01:05]} Nd6 {[%emt 0:00:06]} 41. Rb8+ {[%emt 0:30:25]} Ke7 {[%emt 0:20:14]} 42. Nc6+ {[%emt 0:05:04]} Kd7 {[%emt 0:00:27]} 43. Nd4 {[%emt 0:05:17]} Nc4 {[%emt 0:00:12]} 44. Rb7+ {[%emt 0:02:46]} Ke8 {[%emt 0:00:20]} 45. Nc6 {[%emt 0:07:18]} Nxe3+ {[%emt 0:00:11]} 46. Kg1 {[%emt 0:01:13]} Rxg2+ {[%emt 0:01:27]} 47. Kh1 {[%emt 0:00:26]} Re2 {[%emt 0:00:13]} 48. Re7+ {[%emt 0:01:37]} Kf8 {[%emt 0:00:01]} 49. Kg1 {[%emt 0:00:30]} Rg2+ {[%emt 0:04:39]} 50. Kh1 {[%emt 0:00:01]} Rc2 {[%emt 0:00:15]} 51. Rxe3 {[%emt 0:00:37]} Rxc6 {[%emt 0:00:02]} 52. Rd3 {[%emt 0:00:45]} Rd6 {[%emt 0:00:56]} 53. Kg2 {[%emt 0:00:22]} Ke7 {[%emt 0:00:30]} 54. Kf2 {[%emt 0:00:38]} Rd7 {[%emt 0:00:57]} 55. Ke3 {[%emt 0:00:34]} Kd6 {[%emt 0:00:03]} 56. Kd4 {[%emt 0:00:35]} Ra7 {[%emt 0:00:42]} 57. Rb3 {[%emt 0:00:28]} Ra4+ {[%emt 0:00:02]} 58. Kd3 {[%emt 0:00:17]} Ke5 {[%emt 0:00:26]} 59. Rb7 {[%emt 0:00:40]} Ra3+ {[%emt 0:01:17]} 60. Ke2 {[%emt 0:00:06]} Ra2+ {[%emt 0:00:17]} 61. Ke3 {[%emt 0:15:53]} d4+ {[%emt 0:18:40]} 62. Kd3 {[%emt 0:00:10]} Ra3+ {[%emt 0:00:07]} 63. Ke2 {[%emt 0:00:13]} Kf6 {[%emt 0:02:31]} 64. Rd7 {[%emt 0:00:53]} Ra2+ {[%emt 0:00:28]} 65. Kf1 {[%emt 0:00:47]} Rd2 {[%emt 0:00:22]} 66. Ke1 {[%emt 0:00:32]} Rg2 {[%emt 0:00:07]} 67. Rxd4 {[%emt 0:00:12]} Rxg3 {[%emt 0:00:02]} 68. Rf4+ {[%emt 0:00:42]} Ke6 {[%emt 0:00:13]} 69. Kf2 {[%emt 0:00:09]} Rg5 {[%emt 0:00:02]} 70. Rb4 {[%emt 0:00:26]} Kf6 {[%emt 0:00:27]} 71. Ra4 {[%emt 0:00:30]} Rb5 {[%emt 0:01:03]} 72. Kg3 {[%emt 0:00:45]} Kg5 {[%emt 0:00:08]} 73. Rd4 {[%emt 0:00:30]} Rf5 {[%emt 0:00:57]} 74. f4+ {[%emt 0:00:41]} Kh6 {[%emt 0:00:34]} 75. Rd6 {[%emt 0:00:32]} Kg7 {[%emt 0:01:22]} 76. Rd7 {[%emt 0:00:35]} h4+ {[%emt 0:00:40]} 77. Kg4 {[%emt 0:00:32]} h3 {[%emt 0:00:10]} 78. Kxh3 {[%emt 0:00:29]} Rxf4 {[%emt 0:00:05]} 79. Kg3 {[%emt 0:00:16]} Rc4 {[%emt 0:00:11]} 80. Rd5 {[%emt 0:00:29]} Kh6 {[%emt 0:00:33]} 81. Kf3 {[%emt 0:00:33]} f5 {[%emt 0:00:08]} 82. Rd3 {[%emt 0:00:30]} g5 {[%emt 0:00:22]} 83. Kg3 {[%emt 0:00:22]} Kh5 {[%emt 0:00:04]} 84. Ra3 {[%emt 0:00:41]} f4+ {[%emt 0:00:11]} 85. Kg2 {[%emt 0:00:14]} g4 {[%emt 0:00:07]} 0-1

[Event "FIDE Womens Grand Swiss 2023"]
[Site "Douglas/Isle of Man"]
[Date "2023.10.27"]
[Round "3.24"]
[White "Kiolbasa, Oliwia"]
[Black "Gomez Barrera, Javiera Belen"]
[Result "1-0"]
[ECO "C50"]
[WhiteElo "2375"]
[BlackElo "2266"]
[Annotator "ChessBase"]
[PlyCount "109"]
[EventDate "2023.10.04"]
[EventType "swiss"]
[EventCountry "GBR"]
[SourceTitle "playchess.com"]
[Source "ChessBase"]
[SourceQuality "1"]
[TimeControl "40/6000+30:20/3000+30:900+30"]

1. e4 {[%emt 0:10:03]} e5 {[%emt 0:10:04]} 2. Nf3 {[%emt 0:00:09]} Nc6 {[%emt 0:00:08]} 3. Bc4 {[%emt 0:00:09]} Bc5 {[%emt 0:00:16]} 4. d3 {[%emt 0:00:19]} Nf6 {[%emt 0:02:13]} 5. Nc3 {[%emt 0:00:30]} d6 {[%emt 0:01:17]} 6. a4 {[%emt 0:00:32]} h6 {[%emt 0:16:09]} 7. Be3 {[%emt 0:01:00]} Bb6 {[%emt 0:15:32]} 8. O-O {[%emt 0:00:39]} Bg4 {[%emt 0:04:03]} 9. Nd5 {[%emt 0:15:07]} Nxd5 {[%emt 0:05:57]} 10. Bxd5 {[%emt 0:07:46]} O-O {[%emt 0:03:38]} 11. h3 {[%emt 0:06:32]} Be6 {[%emt 0:07:14]} 12. d4 {[%emt 0:16:52]} exd4 {[%emt 0:08:19]} 13. Nxd4 {[%emt 0:00:28]} Bxd5 {[%emt 0:00:47]} 14. exd5 {[%emt 0:00:25]} Nxd4 {[%emt 0:02:42]} 15. Bxd4 {[%emt 0:00:10]} Qh4 {[%emt 0:06:35]} 16. Bc3 {[%emt 0:02:57]} a5 {[%emt 0:00:39]} 17. Qd2 {[%emt 0:01:30]} Rfe8 {[%emt 0:01:26]} 18. b3 {[%emt 0:04:12]} Qe4 {[%emt 0:07:13]} 19. Rae1 {[%emt 0:11:33]} Qf5 {[%emt 0:00:01]} 20. Rxe8+ {[%emt 0:00:15]} Rxe8 {[%emt 0:00:02]} 21. Bxa5 {[%emt 0:00:23]} Bxa5 {[%emt 0:00:01]} 22. Qxa5 {[%emt 0:00:10]} Qxc2 {[%emt 0:00:03]} 23. Qb5 {[%emt 0:00:12]} Rb8 {[%emt 0:00:01]} 24. Re1 {[%emt 0:02:27]} c6 {[%emt 0:08:48]} 25. Qb4 {[%emt 0:01:13]} Qc5 {[%emt 0:05:34]} 26. Qxc5 {[%emt 0:01:55]} dxc5 {[%emt 0:00:02]} 27. Rc1 {[%emt 0:00:43]} b6 {[%emt 0:02:51]} 28. dxc6 {[%emt 0:01:27]} Rc8 {[%emt 0:00:01]} 29. a5 {[%emt 0:01:05]} Rxc6 {[%emt 0:00:01]} 30. a6 {[%emt 0:00:29]} b5 {[%emt 0:01:34]} 31. a7 {[%emt 0:07:07]} Ra6 {[%emt 0:00:00]} 32. Rxc5 {[%emt 0:00:10]} Rxa7 {[%emt 0:00:02]} 33. Rxb5 {[%emt 0:00:07]} Ra1+ {[%emt 0:00:02]} 34. Kh2 {[%emt 0:00:07]} Rb1 {[%emt 0:00:02]} 35. g4 {[%emt 0:00:18]} g6 {[%emt 0:00:36]} 36. h4 {[%emt 0:02:45]} Kg7 {[%emt 0:01:41]} 37. h5 {[%emt 0:00:12]} gxh5 {[%emt 0:00:35]} 38. gxh5 {[%emt 0:00:07]} Kf6 {[%emt 0:00:12]} 39. Kg3 {[%emt 0:00:19]} Rb2 {[%emt 0:02:04]} 40. f3 {[%emt 0:00:34]} Ke6 {[%emt 0:01:30]} 41. Kf4 {[%emt 0:52:44]} Kf6 {[%emt 0:21:47]} 42. b4 {[%emt 0:00:00]} Re2 {[%emt 0:05:43]} 43. Rc5 {[%emt 0:00:00]} Rb2 {[%emt 0:00:31]} 44. b5 {[%emt 0:00:00]} Rb4+ {[%emt 0:00:01]} 45. Kg3 {[%emt 0:00:00]} Ke6 {[%emt 0:02:21]} 46. f4 {[%emt 0:00:00]} Kd6 {[%emt 0:03:51]} 47. Rc6+ {[%emt 0:00:00]} Kd7 {[%emt 0:00:36]} 48. Rb6 {[%emt 0:00:00]} Ke7 {[%emt 0:02:56]} 49. Kg4 {[%emt 0:00:19]} Kf8 {[%emt 0:02:20]} 50. Kf5 {[%emt 0:02:15]} Kg7 {[%emt 0:00:06]} 51. Ke5 {[%emt 0:02:22]} Rb1 {[%emt 0:01:18]} 52. Kd6 {[%emt 0:05:15]} Rh1 {[%emt 0:04:05]} 53. Rc6 {[%emt 0:01:02]} Rxh5 {[%emt 0:00:48]} 54. b6 {[%emt 0:00:19]} Rb5 {[%emt 0:01:56]} 55. Kc7 {[%emt 0:00:18]} 1-0

[Event "FIDE Womens Grand Swiss 2023"]
[Site "Douglas/Isle of Man"]
[Date "2023.10.27"]
[Round "3.25"]
[White "Arakhamia-Grant, Ketevan"]
[Black "Kanyamarala, Trisha"]
[Result "1-0"]
[ECO "B90"]
[WhiteElo "2297"]
[BlackElo "2184"]
[Annotator "ChessBase"]
[PlyCount "93"]
[EventDate "2023.10.04"]
[EventType "swiss"]
[EventCountry "GBR"]
[SourceTitle "playchess.com"]
[Source "ChessBase"]
[SourceQuality "1"]
[TimeControl "40/6000+30:20/3000+30:900+30"]

1. e4 {[%emt 0:10:03]} c5 {[%emt 0:10:08]} 2. Nf3 {[%emt 0:00:12]} d6 {[%emt 0:00:13]} 3. d4 {[%emt 0:00:09]} cxd4 {[%emt 0:00:07]} 4. Nxd4 {[%emt 0:00:02]} Nf6 {[%emt 0:00:12]} 5. Nc3 {[%emt 0:00:05]} a6 {[%emt 0:00:10]} 6. Be3 {[%emt 0:00:32]} e5 {[%emt 0:00:16]} 7. Nb3 {[%emt 0:00:46]} Be6 {[%emt 0:00:15]} 8. f3 {[%emt 0:01:42]} h5 {[%emt 0:00:28]} 9. Qd2 {[%emt 0:01:06]} Nbd7 {[%emt 0:00:46]} 10. O-O-O {[%emt 0:01:42]} Qc7 {[%emt 0:00:32]} 11. Kb1 {[%emt 0:01:49]} b5 {[%emt 0:03:03]} 12. Nd5 {[%emt 0:23:06]} Bxd5 {[%emt 0:07:16]} 13. exd5 {[%emt 0:00:07]} Rc8 {[%emt 0:04:44]} 14. c4 {[%emt 0:06:30]} Be7 {[%emt 0:29:52]} 15. cxb5 {[%emt 0:05:28]} axb5 {[%emt 0:00:46]} 16. Rc1 {[%emt 0:03:32]} Qb7 {[%emt 0:03:44]} 17. Rxc8+ {[%emt 0:00:18]} Qxc8 {[%emt 0:00:06]} 18. Bxb5 {[%emt 0:00:12]} O-O {[%emt 0:00:47]} 19. Rc1 {[%emt 0:01:28]} Qb8 {[%emt 0:00:21]} 20. Bc6 {[%emt 0:05:53]} Bd8 {[%emt 0:00:53]} 21. Qd3 {[%emt 0:11:10]} Bb6 {[%emt 0:04:04]} 22. Bxb6 {[%emt 0:03:09]} Qxb6 {[%emt 0:00:55]} 23. Qb5 {[%emt 0:01:05]} Qd8 {[%emt 0:04:32]} 24. a4 {[%emt 0:04:29]} e4 {[%emt 0:01:09]} 25. a5 {[%emt 0:12:00]} exf3 {[%emt 0:00:50]} 26. gxf3 {[%emt 0:00:16]} Qe7 {[%emt 0:00:57]} 27. a6 {[%emt 0:05:16]} Qe3 {[%emt 0:04:22]} 28. Rc3 {[%emt 0:01:54]} Qg1+ {[%emt 0:00:28]} 29. Ka2 {[%emt 0:00:08]} Rb8 {[%emt 0:04:07]} 30. Qa5 {[%emt 0:03:50]} Qa7 {[%emt 0:04:11]} 31. Bxd7 {[%emt 0:06:13]} Qxd7 {[%emt 0:02:31]} 32. a7 {[%emt 0:00:40]} Ra8 {[%emt 0:00:06]} 33. Rc7 {[%emt 0:00:06]} Qf5 {[%emt 0:01:13]} 34. Rb7 {[%emt 0:00:57]} Qc8 {[%emt 0:00:25]} 35. Qb5 {[%emt 0:00:34]} Ne8 {[%emt 0:04:49]} 36. Na5 {[%emt 0:00:10]} Qc2 {[%emt 0:04:33]} 37. Nc6 {[%emt 0:00:10]} Kh7 {[%emt 0:00:47]} 38. Rxf7 {[%emt 0:01:25]} Nf6 {[%emt 0:01:42]} 39. Rb7 {[%emt 0:00:39]} Re8 {[%emt 0:02:56]} 40. Qb3 {[%emt 0:00:56]} Qe2 {[%emt 0:01:47]} 41. Nb8 {[%emt 0:37:40]} Qf1 {[%emt 0:26:22]} 42. Qc2+ {[%emt 0:01:57]} Kh6 {[%emt 0:00:13]} 43. a8=Q {[%emt 0:06:16]} Re1 {[%emt 0:00:34]} 44. Qd2+ {[%emt 0:01:21]} g5 {[%emt 0:00:07]} 45. Qxe1 {[%emt 0:01:21]} Qxe1 {[%emt 0:00:07]} 46. Nc6 {[%emt 0:00:56]} g4 {[%emt 0:00:57]} 47. f4 {[%emt 0:02:10]} 1-0

[Event "FIDE Womens Grand Swiss 2023"]
[Site "Douglas/Isle of Man"]
[Date "2023.10.29"]
[Round "5.3"]
[White "Goryachkina, Aleksandra"]
[Black "Kamalidenova, Meruert"]
[Result "1-0"]
[ECO "B55"]
[WhiteElo "2558"]
[BlackElo "2351"]
[Annotator "TA"]
[PlyCount "71"]
[EventDate "2023.10.04"]
[EventType "swiss"]
[EventCountry "GBR"]
[SourceTitle "playchess.com"]
[Source "ChessBase"]
[SourceQuality "1"]
[TimeControl "40/6000+30:20/3000+30:900+30"]

{[%evp 10,71,20,11,45,20,12,21,14,16,27,14,22,22,22,18,25,28,23,16,41,29,51,13,29,15,19,23,29,20,70,51,129,131,291,283,279,272,256,181,392,414,462,477,477,470,469,467,463,467,448,455,435,429,508,502,683,681,628,565,641,617,695,656]} 1. e4 {[%emt 0:10:11]} c5 {[%emt 0:10:11]} 2. Nf3 {[%emt 0:00:11]} d6 {[%emt 0:00:21]} 3. d4 {[%emt 0:00:42]} cxd4 {[%emt 0:00:06]} 4. Nxd4 {[%emt 0:00:05]} Nf6 {[%emt 0:00:05]} 5. f3 {[%emt 0:00:34]} e5 {[%emt 0:01:08]} 6. Nb3 {[%emt 0:00:25]} a5 {[%emt 0:01:23] B55: Sicilian: 2...d6 3 d4 cxd4 4 Nxd4 Nf6 5 f3.} 7. a4 {[%emt 0:07:19]} Be7 {[%emt 0:01:03]} 8. Bb5+ {[%emt 0:03:35]} Nc6 {[%emt 0:01:29] The position is equal.} 9. c4 {[%emt 0:05:04]} O-O {[%emt 0:02:25]} 10. Be3 {[%emt 0:02:00]} Be6 {[%emt 0:02:43]} 11. Nc3 {[%emt 0:02:48]} Nb4 {[%emt 0:02:39]} 12. O-O {[%emt 0:09:18] [#]} Nh5 $146 {[%emt 0:02:56]} ({Predecessor:} 12... Rc8 13. Qe2 Qc7 14. Rac1 Bxc4 15. Bxc4 Qxc4 16. Qxc4 Rxc4 17. Nxa5 Rc7 18. Rfd1 Ra8 {1-0 Jobava,B (2588)-Kamalidenova,M (2362) Cattolica Spring Mix 2022 (1)}) 13. g3 {[%emt 0:07:50]} Bg5 {[%emt 0:10:26]} 14. Bf2 {[%emt 0:02:56][%cal Of3f4]} g6 {[%emt 0:02:37]} 15. Qe2 {[%emt 0:02:49]} Qc7 {[%emt 0:03:50]} 16. Nc1 {[%emt 0:06:32][%cal Bb3c1,Bc1d3,Bd3e5,Be5c4][%mdl 32]} f5 {[%emt 0:04:44]} 17. exf5 {[%emt 0:06:11]} Bxf5 {[%emt 0:01:32]} 18. Ne4 {[%emt 0:01:11]} Bxe4 {[%emt 0:05:29]} 19. Qxe4 {[%emt 0:02:59]} b6 {[%emt 0:08:44]} (19... Nf6 $11 20. Qe2 Nd7) 20. Nd3 {[%emt 0:03:45] Nxb4 is the strong threat.} (20. Na2 {simplifies} Nf6 21. Qe2 Nxa2 22. Rxa2 Rf7 23. Raa1) 20... Bd2 {[%emt 0:03:35] [#]} (20... Nf6 $14 21. Qe2 Nxd3 22. Qxd3 Rac8) 21. c5 $1 $16 {[%emt 0:08:18][%mdl 64] Deflection} dxc5 {[%emt 0:09:46] This costs Black the game.} (21... bxc5 $16 22. Rad1 (22. Nxb4 Bxb4 23. Bc4+ Kg7 $11) 22... Bh6) 22. Nxe5 $18 {[%emt 0:03:22]} Nf6 {[%emt 0:02:24]} 23. Qc4+ {[%emt 0:03:16]} Kg7 {[%emt 0:03:04]} 24. Rad1 {[%emt 0:01:28] Strongly threatening f4.} Rad8 $2 {[%emt 0:06:28] [#]} (24... Qxe5 {was worth a try.} 25. Rxd2 Rad8) 25. f4 {[%emt 0:02:09]} Rd5 {[%emt 0:07:38]} 26. Qe2 {[%emt 0:01:27] White is clearly winning.} Rfd8 {[%emt 0:00:23]} 27. Nc4 {[%emt 0:00:35]} Bxf4 {[%emt 0:00:57]} 28. gxf4 {[%emt 0:00:37]} Rxd1 {[%emt 0:01:21]} 29. Rxd1 {[%emt 0:00:12]} Rxd1+ {[%emt 0:00:07]} 30. Qxd1 {[%emt 0:00:04]} Qxf4 {[%emt 0:00:07]} 31. Bg3 {[%emt 0:01:22]} ({Don't take} 31. Nxb6 Ne4 $18) 31... Qe4 {[%emt 0:00:47]} 32. Nxb6 {[%emt 0:03:45]} Ng4 {[%emt 0:01:20]} 33. Qd7+ {[%emt 0:00:57]} Kh6 {[%emt 0:01:58]} 34. Qd2+ {[%emt 0:00:41]} Kg7 {[%emt 0:00:10]} 35. Qf4 {[%emt 0:01:44]} Qb1+ {[%emt 0:02:25]} 36. Bf1 {[%emt 0:00:28] Weighted Error Value: White=0.12 (very precise) /Black=0.41} 1-0

[Event "FIDE Womens Grand Swiss 2023"]
[Site "Douglas/Isle of Man"]
[Date "2023.10.29"]
[Round "5.19"]
[White "Mkrtchyan, Mariam"]
[Black "Batsiashvili, Nino"]
[Result "1/2-1/2"]
[ECO "A58"]
[WhiteElo "2343"]
[BlackElo "2475"]
[Annotator "RC"]
[PlyCount "231"]
[EventDate "2023.10.04"]
[EventType "swiss"]
[EventCountry "GBR"]
[SourceTitle "playchess.com"]
[Source "ChessBase"]
[SourceQuality "1"]
[TimeControl "40/6000+30:20/3000+30:900+30"]

1. d4 {[%emt 0:10:03]} Nf6 {[%emt 0:10:03]} 2. c4 {[%emt 0:00:05]} c5 {[%emt 0:00:03]} 3. d5 {[%emt 0:00:07]} b5 {[%emt 0:00:07]} 4. cxb5 {[%emt 0:00:17]} a6 {[%emt 0:00:05]} 5. bxa6 {[%emt 0:00:09]} e6 {[%emt 0:00:06]} 6. dxe6 {[%emt 0:02:56]} fxe6 {[%emt 0:00:06]} 7. Nc3 {[%emt 0:00:03]} Bxa6 {[%emt 0:03:41]} 8. g3 {[%emt 0:00:12]} d5 {[%emt 0:03:00]} 9. Bg2 {[%emt 0:00:11]} Nc6 {[%emt 0:01:16]} 10. Nh3 {[%emt 0:00:15]} Bd6 {[%emt 0:02:54]} 11. O-O {[%emt 0:00:46]} O-O {[%emt 0:01:02]} 12. Bf4 {[%emt 0:00:02]} Kh8 {[%emt 0:24:57]} 13. Re1 {[%emt 0:08:05]} Ne5 {[%emt 0:09:40]} 14. e4 {[%emt 0:18:15]} d4 {[%emt 0:00:33]} 15. Na4 {[%emt 0:01:40]} Bb5 {[%emt 0:12:21]} 16. Nxc5 {[%emt 0:05:37]} Bxc5 {[%emt 0:00:09]} 17. Bxe5 {[%emt 0:00:12]} d3 {[%emt 0:00:02]} 18. Bc3 {[%emt 0:04:06]} Qd7 {[%emt 0:01:47]} 19. Kh1 {[%emt 0:02:26]} e5 {[%emt 0:09:20]} 20. f3 {[%emt 0:11:36]} Ra6 {[%emt 0:05:07]} 21. Qd2 {[%emt 0:02:30]} Re8 {[%emt 0:02:05]} 22. Nf2 {[%emt 0:02:50]} Qa7 {[%emt 0:02:18]} 23. Nd1 {[%emt 0:06:48]} Rxa2 {[%emt 0:01:11]} 24. Rxa2 {[%emt 0:00:01]} Qxa2 {[%emt 0:00:02]} 25. f4 {[%emt 0:00:38]} exf4 {[%emt 0:01:35]} 26. gxf4 {[%emt 0:08:45]} Qf7 {[%emt 0:00:52]} 27. f5 {[%emt 0:02:23]} Nh5 {[%emt 0:05:56]} 28. Qg5 {[%emt 0:01:32]} Bc6 {[%emt 0:01:15]} 29. f6 {[%emt 0:05:41]} Bf8 {[%emt 0:00:10]} 30. fxg7+ {[%emt 0:02:56]} Bxg7 {[%emt 0:00:15]} 31. Bxg7+ {[%emt 0:04:44]} Nxg7 {[%emt 0:00:02]} 32. Qc5 {[%emt 0:00:43]} Qd7 {[%emt 0:03:00]} 33. Nc3 {[%emt 0:00:45]} Ne6 {[%emt 0:01:23]} 34. Qe5+ {[%emt 0:00:35]} Ng7 {[%emt 0:00:07]} 35. Qf6 {[%emt 0:01:27]} Kg8 {[%emt 0:01:28]} 36. Rd1 {[%emt 0:00:59]} Rf8 {[%emt 0:00:43]} 37. Qg5 {[%emt 0:02:45]} Rf2 {[%emt 0:05:11]} 38. b4 {[%emt 0:02:36]} d2 {[%emt 0:02:12]} 39. b5 {[%emt 0:02:21]} Bb7 {[%emt 0:01:56]} 40. Qe3 {[%emt 0:01:03]} Qf7 {[%emt 0:01:37]} 41. Kg1 {[%emt 0:22:04]} Rf6 {[%emt 0:27:20]} 42. Rxd2 {[%emt 0:01:49]} Rg6 {[%emt 0:00:38]} 43. Rd8+ {[%emt 0:01:20]} Ne8 {[%emt 0:01:35]} 44. Qd4 {[%emt 0:05:31]} Qe7 {[%emt 0:04:34]} 45. Qd7 {[%emt 0:04:09]} Kf7 {[%emt 0:02:10]} 46. Kf2 {[%emt 0:04:30]} Nd6 {[%emt 0:00:21]} 47. Bf3 {[%emt 0:02:24]} Rf6 {[%emt 0:07:56]} 48. Ke2 {[%emt 0:00:27]} Rh6 {[%emt 0:01:39]} 49. e5 {[%emt 0:10:07]} Rxh2+ {[%emt 0:01:54]} 50. Kd3 {[%emt 0:01:28]} Bxf3 {[%emt 0:01:14]} 51. exd6 {[%emt 0:00:35]} Qxd7 {[%emt 0:00:04]} 52. Rxd7+ {[%emt 0:00:01]} Ke6 {[%emt 0:00:15]} 53. Rd8 {[%emt 0:00:02]} h5 {[%emt 0:01:11]} 54. Ke3 {[%emt 0:00:40]} Rh3 {[%emt 0:02:25]} 55. Kf4 {[%emt 0:00:05]} Bh1 {[%emt 0:01:24]} 56. Ne2 {[%emt 0:00:46]} Rd3 {[%emt 0:00:11]} 57. Rh8 {[%emt 0:02:22]} Rf3+ {[%emt 0:02:55]} 58. Kg5 {[%emt 0:00:30]} Kxd6 {[%emt 0:00:19]} 59. Rxh5 {[%emt 0:00:28]} Re3 {[%emt 0:00:16]} 60. Nd4 {[%emt 0:01:15]} Re1 {[%emt 0:00:06]} 61. Kf6 {[%emt 0:15:31]} Be4 {[%emt 0:16:06]} 62. b6 {[%emt 0:00:46]} Rf1+ {[%emt 0:00:13]} 63. Kg7 {[%emt 0:00:12]} Rb1 {[%emt 0:00:28]} 64. Nb5+ {[%emt 0:00:36]} Kc6 {[%emt 0:01:14]} 65. b7 {[%emt 0:00:32]} Kxb7 {[%emt 0:00:16]} 66. Nd6+ {[%emt 0:00:04]} Kc6 {[%emt 0:00:11]} 67. Nxe4 {[%emt 0:00:01]} Rf1 {[%emt 0:00:09]} 68. Nf6 {[%emt 0:00:09]} Kd6 {[%emt 0:00:24]} 69. Kf7 {[%emt 0:00:01]} Kc6 {[%emt 0:00:07]} 70. Rh2 {[%emt 0:00:11]} Kd6 {[%emt 0:00:11]} 71. Re2 {[%emt 0:00:07]} Rh1 {[%emt 0:00:44]} 72. Rd2+ {[%emt 0:00:28]} Kc6 {[%emt 0:00:10]} 73. Ke6 {[%emt 0:00:04]} Re1+ {[%emt 0:00:05]} 74. Kf5 {[%emt 0:00:01]} Rf1+ {[%emt 0:01:21]} 75. Ke5 {[%emt 0:00:01]} Rh1 {[%emt 0:00:09]} 76. Rc2+ {[%emt 0:00:04]} Kb5 {[%emt 0:00:10]} 77. Ne4 {[%emt 0:00:28]} Kb4 {[%emt 0:00:20]} 78. Rc8 {[%emt 0:00:27]} Re1 {[%emt 0:00:27]} 79. Kd4 {[%emt 0:01:01]} Rd1+ {[%emt 0:00:06]} 80. Ke3 {[%emt 0:00:09]} Re1+ {[%emt 0:00:08]} 81. Kd3 {[%emt 0:00:02]} Rd1+ {[%emt 0:00:32]} 82. Nd2 {[%emt 0:00:03]} Kb5 {[%emt 0:00:09]} 83. Rc2 {[%emt 0:00:19]} Rh1 {[%emt 0:00:48]} 84. Kd4 {[%emt 0:00:03]} Rh4+ {[%emt 0:01:30]} 85. Ne4 {[%emt 0:00:05]} Kb6 {[%emt 0:00:03]} 86. Kd5 {[%emt 0:00:27]} Rh5+ {[%emt 0:00:07]} 87. Ke6 {[%emt 0:00:03]} Rh6+ {[%emt 0:00:07]} 88. Nf6 {[%emt 0:00:04]} Kb5 {[%emt 0:00:18]} 89. Ke5 {[%emt 0:00:05]} Rh1 {[%emt 0:00:13]} 90. Ng4 {[%emt 0:01:31]} Rh4 {[%emt 0:01:04]} 91. Ne3 {[%emt 0:00:18]} Rh5+ {[%emt 0:00:06]} 92. Nf5 {[%emt 0:00:03]} Kb4 {[%emt 0:00:09]} 93. Ke4 {[%emt 0:00:04]} Rh8 {[%emt 0:00:27]} 94. Nd6 {[%emt 0:00:31]} Rh4+ {[%emt 0:00:39]} 95. Kd3 {[%emt 0:00:39]} Rh3+ {[%emt 0:00:13]} 96. Kd4 {[%emt 0:00:02]} Rh4+ {[%emt 0:00:05]} 97. Ne4 {[%emt 0:00:04]} Kb5 {[%emt 0:00:03]} 98. Rc1 {[%emt 0:00:33]} Kb6 {[%emt 0:00:05]} 99. Rg1 {[%emt 0:00:35]} Rh6 {[%emt 0:00:34]} 100. Kd5 {[%emt 0:00:24]} Rh5+ {[%emt 0:00:08]} 101. Ng5 {[%emt 0:00:14]} Kc7 {[%emt 0:00:45]} 102. Ke6 {[%emt 0:00:06]} Rh6+ {[%emt 0:00:12]} 103. Ke5 {[%emt 0:00:12]} Rh5 {[%emt 0:00:10]} 104. Kf6 {[%emt 0:00:07]} Kc6 {[%emt 0:00:22]} 105. Nf7 {[%emt 0:00:11]} Rh2 {[%emt 0:00:49]} 106. Ke6 {[%emt 0:00:07]} Kc5 {[%emt 0:00:06]} 107. Ne5 {[%emt 0:00:07]} Rh6+ {[%emt 0:00:09]} 108. Kf5 {[%emt 0:00:06]} Rh5+ {[%emt 0:00:08]} 109. Ke4 {[%emt 0:00:01]} Rh4+ {[%emt 0:00:06]} 110. Ng4 {[%emt 0:00:04]} Kd6 {[%emt 0:00:28]} 111. Kf5 {[%emt 0:00:06]} Rh5+ {[%emt 0:00:15]} 112. Kf6 {[%emt 0:00:01]} Rh3 {[%emt 0:00:19]} 113. Rd1+ {[%emt 0:00:04]} Kc5 {[%emt 0:00:08]} 114. Ke5 {[%emt 0:00:13]} Rh5+ {[%emt 0:00:11]} 115. Kf4 {[%emt 0:00:14]} Rh4 {[%emt 0:00:41]} 116. Ke4 {[%emt 0:00:03]} 1/2-1/2